fUSD/lending_fUSD_20241024
["ID","MTS","AMOUNT","RATE_DAILY","PERIOD"]
[340777564,1729798240674,-757.63,0.00062465,120]
[340777565,1729798240684,-757.63,0.00062465,120]
[340777566,1729798240694,-757.63,0.00062465,120]
[340777567,1729798240703,-1181.43,0.00062465,21]
[340777568,1729798240713,-1181.43,0.00062465,21]
[340777569,1729798240722,-1181.43,0.00062465,21]
[340777570,1729798240732,-1181.43,0.00062465,21]
[340777571,1729798240742,-287.39,0.00062465,120]
[340777572,1729798240751,-151.0,0.00062465,120]
[340777573,1729798240761,-500.0,0.00062465,120]
[340777574,1729798240770,-500.0,0.00062465,120]
[340777575,1729798240780,-214.75881977,0.00062465,120]
[340777576,1729798240790,-500.0,0.00062465,120]
[340777577,1729798240799,-151.0,0.00062465,120]
[340777578,1729798240809,-500.0,0.00062465,120]
[340777579,1729798240819,-150.0,0.00062465,120]
[340777580,1729798240828,-500.0,0.00062465,120]
[340777581,1729798240837,-500.0,0.00062465,120]
[340777582,1729798240847,-500.0,0.00062465,120]
[340777583,1729798240857,-500.0,0.00062465,120]
[340777584,1729798240866,-500.0,0.00062465,120]
[340777585,1729798240876,-500.0,0.00062465,120]
[340777586,1729798240886,-500.0,0.00062465,120]
[340777587,1729798240895,-500.0,0.00062465,120]
[340777588,1729798240904,-151.0,0.00062465,120]
[340777589,1729798240914,-151.0,0.00062465,120]
[340777590,1729798240924,-500.0,0.00062465,120]
[340777591,1729798240933,-623.06,0.00062465,120]
[340777592,1729798240942,-624.65,0.00062465,120]
[340777593,1729798240951,-624.65,0.00062465,120]
[340777594,1729798240961,-624.65,0.00062465,120]
[340777595,1729798240971,-624.65,0.00062465,120]
[340777596,1729798240981,-516.15,0.00062465,120]
[340777597,1729798240991,-516.15,0.00062465,120]
[340777598,1729798241000,-516.15,0.00062465,120]
[340777599,1729798241010,-516.15,0.00062465,120]
[340777600,1729798241019,-500.0,0.00062465,120]
[340777601,1729798241029,-500.0,0.00062465,120]
[340777602,1729798241038,-500.0,0.00062465,120]
[340777603,1729798241052,-500.0,0.00062465,120]
[340777604,1729798241062,-500.0,0.00062465,120]
[340777605,1729798241072,-447.88539441,0.00062465,120]
[340777606,1729798241081,-500.0,0.00062465,120]
[340777607,1729798241092,-500.0,0.00062465,120]
[340777608,1729798241101,-500.0,0.00062465,120]
[340777609,1729798241110,-500.0,0.00062465,120]
[340777610,1729798241120,-2568.135753,0.00062465,120]
[340777611,1729798241129,-500.0,0.00062465,120]
[340777612,1729798241139,-500.0,0.00062465,120]
[340777613,1729798241148,-2568.135753,0.00062465,120]
[340777614,1729798241158,-500.0,0.00062465,120]
[340777615,1729798241168,-500.0,0.00062465,120]
[340777616,1729798241178,-802.41,0.00062465,120]
[340777617,1729798241188,-802.41,0.00062465,120]
[340777618,1729798241197,-802.41,0.00062465,120]
[340777619,1729798241206,-802.41,0.00062465,120]
[340777620,1729798241217,-151.0,0.00062465,120]
[340777621,1729798241226,-500.0,0.00062465,120]
[340777622,1729798241236,-500.0,0.00062465,120]
[340777623,1729798241245,-500.0,0.00062465,120]
[340777624,1729798241255,-533.55999775,0.00062465,120]
[340777625,1729798241265,-500.0,0.00062465,120]
[340777626,1729798241275,-627.96,0.00062465,120]
[340777627,1729798241285,-1184.89,0.00062465,120]
[340777628,1729798241294,-1184.89,0.00062465,120]
[340777629,1729798241304,-1184.89,0.00062465,120]
[340777630,1729798241314,-1184.89,0.00062465,120]
[340777631,1729798241324,-500.0,0.00062465,120]
[340777632,1729798241333,-562.02,0.00062465,120]
[340777633,1729798241342,-2884.96,0.00062465,120]
[340777634,1729798241352,-2884.96,0.00062465,120]
[340777635,1729798241361,-2884.96,0.00062465,120]
[340777636,1729798241371,-2884.96,0.00062465,120]
[340777637,1729798241380,-151.0,0.00062465,120]
[340777638,1729798241390,-151.0,0.00062465,120]
[340777639,1729798241399,-500.0,0.00062465,120]
[340777640,1729798241408,-500.0,0.00062465,120]
[340777641,1729798241418,-500.0,0.00062465,120]
[340777642,1729798241427,-500.0,0.00062465,120]
[340777643,1729798241436,-500.0,0.00062465,120]
[340777644,1729798241446,-500.0,0.00062465,120]
[340777645,1729798241456,-500.0,0.00062465,120]
[340777646,1729798241467,-500.0,0.00062465,120]
[340777647,1729798241476,-500.0,0.00062465,120]
[340777648,1729798241485,-151.0,0.00062481,120]
[340777649,1729798241495,-151.0,0.00062481,120]
[340777650,1729798241504,-169.7183692,0.00062493,3]
[340777651,1729798241514,-5353.9585265,0.00062493,3]
[340777652,1729798241523,-30432.1383291,0.00062493,3]
[340777653,1729798241532,-1621.8461598,0.00062493,3]
[340777654,1729798241542,-5077.43,0.00062495,120]
[340777655,1729798241551,-1181.43,0.00062495,21]
[340777656,1729798241561,-500.0,0.00062495,120]
[340777657,1729798241570,-624.65,0.00062495,120]
[340777658,1729798241580,-1184.89,0.00062495,120]
[340777659,1729798241590,-500.0,0.00062495,120]
[340777660,1729798241599,-151.0,0.00062496,120]
[340777661,1729798241609,-173.561941,0.00062496,120]
[340777662,1729798241618,-335.231859,0.00062496,110]
[340777663,1729798241628,-335.231859,0.00062496,110]
[340777664,1729798241637,-500.0,0.00062497,120]
[340777665,1729798241647,-500.0,0.00062497,60]
[340777666,1729798241656,-500.0,0.00062497,120]
[340777667,1729798241665,-500.0,0.00062497,120]
[340777668,1729798241675,-500.0,0.00062497,120]
[340777669,1729798241685,-500.0,0.00062497,120]
[340777670,1729798241695,-500.0,0.00062497,120]
[340777671,1729798241704,-500.0,0.00062497,120]
[340777672,1729798241716,-500.0,0.00062497,120]
[340777673,1729798241726,-500.0,0.00062497,120]
[340777674,1729798241736,-600.44,0.00062497,120]
[340777675,1729798241745,-598.64,0.00062497,120]
[340777676,1729798241755,-1824.17,0.00062497,120]
[340777677,1729798241765,-500.0,0.00062498,120]
[340777678,1729798241774,-500.0,0.00062498,120]
[340777679,1729798241784,-300.0,0.00062499,120]
[340777680,1729798241794,-516.15,0.00062578,120]
[340777681,1729798241803,-500.0,0.00062578,120]
[340777682,1729798241813,-520.91,0.00062578,120]
[340777683,1729798241823,-190.35354,0.00062579,120]
[340777684,1729798241833,-151.0,0.00062579,120]
[340777685,1729798241842,-151.0,0.00062579,120]
[340777686,1729798241852,-151.0,0.00062579,120]
[340777687,1729798241861,-150.0,0.0006274,60]
[340777688,1729798241871,-150.0,0.0006274,60]
[340777689,1729798241881,-150.0,0.0006274,60]
[340777690,1729798241891,-150.0,0.0006274,60]
[340777691,1729798241900,-150.68,0.0006274,60]
[340777692,1729798241909,-151.0,0.0006274,120]
[340777693,1729798241919,-151.0,0.0006274,120]
[340777694,1729798241929,-151.0,0.00062881,120]
[340777695,1729798241939,-212.73003,0.00062881,120]
[340777696,1729798241949,-3719.29207797,0.00062888,15]
[340777697,1729798241965,-500.0,0.00062988,120]
[340777698,1729798241981,-723.54,0.00062988,120]
[340777699,1729798241991,-500.0,0.00062988,120]
[340777700,1729798242001,-500.0,0.00062988,120]
[340777701,1729798242011,-165.80526093,0.00062988,120]
[340777702,1729798242021,-500.0,0.00062988,120]
[340777703,1729798242031,-500.0,0.00062988,120]
[340777704,1729798242041,-500.0,0.00062988,120]
[340777705,1729798242054,-500.0,0.00062988,120]
[340777706,1729798242064,-500.0,0.00062988,120]
[340777707,1729798242073,-500.0,0.00062988,120]
[340777708,1729798242083,-500.0,0.00062988,120]
[340777709,1729798242094,-520.09,0.00062988,120]
[340777710,1729798242103,-500.0,0.00062988,120]
[340777711,1729798242113,-500.0,0.00062988,120]
[340777712,1729798242123,-500.0,0.00062988,120]
[340777713,1729798242132,-500.0,0.00062988,120]
[340777714,1729798242143,-500.0,0.00062988,120]
[340777715,1729798242152,-500.0,0.00062988,120]
[340777716,1729798242162,-728.57,0.00062988,120]
[340777717,1729798242171,-757.63,0.00062988,120]
[340777718,1729798242181,-500.0,0.00062988,120]
[340777719,1729798242191,-500.0,0.00062988,120]
[340777720,1729798242201,-500.0,0.00062988,120]
[340777721,1729798242211,-2884.96,0.00062988,120]
[340777722,1729798242223,-151.92,0.00062989,120]
[340777723,1729798242232,-802.41,0.00062998,120]
[340777724,1729798242365,-300.0,0.00062999,120]
[340777725,1729798242375,-170.3326988,0.00062999,120]
[340777726,1729798242384,-500.0,0.00062999,120]
[340777727,1729798242394,-500.0,0.00062999,120]
[340777728,1729798242404,-723.54,0.00062999,120]
[340777729,1729798242413,-723.54,0.00062999,120]
[340777730,1729798242424,-500.0,0.00062999,120]
[340777731,1729798242433,-500.0,0.00062999,120]
[340777732,1729798242443,-265.22089095,0.00062999,120]
[340777733,1729798242453,-500.0,0.00062999,120]
[340777734,1729798242466,-500.0,0.00062999,120]
[340777735,1729798242475,-500.0,0.00062999,120]
[340777736,1729798242484,-500.0,0.00062999,120]
[340777737,1729798242494,-322.6947952,0.00062999,120]
[340777738,1729798242503,-500.0,0.00062999,60]
[340777739,1729798242512,-500.0,0.00062999,60]
[340777740,1729798242522,-466.05820288,0.00062999,120]
[340777741,1729798242531,-500.0,0.00062999,120]
[340777742,1729798242541,-500.0,0.00062999,120]
[340777743,1729798242550,-500.0,0.00062999,120]
[340777744,1729798242560,-500.0,0.00062999,120]
[340777745,1729798242569,-500.0,0.00062999,120]
[340777746,1729798242578,-189.31893871,0.00062999,120]
[340777747,1729798242588,-500.0,0.00062999,120]
[340777748,1729798242598,-204.13117141,0.00062999,120]
[340777749,1729798242607,-500.0,0.00062999,120]
[340777750,1729798242617,-500.0,0.00062999,120]
[340777751,1729798242627,-500.0,0.00062999,120]
[340777752,1729798242636,-500.0,0.00062999,120]
[340777754,1729798242646,-500.0,0.00062999,120]
[340777756,1729798242655,-500.0,0.00062999,120]
[340777758,1729798242664,-500.0,0.00062999,120]
[340777760,1729798242674,-500.0,0.00062999,120]
[340777761,1729798242684,-500.0,0.00062999,120]
[340777762,1729798242693,-500.0,0.00062999,120]
[340777763,1729798242703,-500.0,0.00062999,120]
[340777764,1729798242712,-151.02467623,0.00062999,120]
[340777765,1729798242722,-500.0,0.00062999,120]
[340777766,1729798242731,-500.0,0.00062999,120]
[340777767,1729798242740,-500.0,0.00062999,120]
[340777768,1729798242749,-500.0,0.00062999,120]
[340777769,1729798242758,-500.0,0.00062999,120]
[340777770,1729798242767,-600.44,0.00062999,120]
[340777771,1729798242777,-600.44,0.00062999,120]
[340777772,1729798242786,-520.09,0.00062999,120]
[340777773,1729798242796,-520.09,0.00062999,120]
[340777774,1729798242805,-500.0,0.00062999,120]
[340777775,1729798242815,-500.0,0.00062999,120]
[340777776,1729798242825,-598.64,0.00062999,120]
[340777777,1729798242835,-598.64,0.00062999,120]
[340777778,1729798242844,-500.0,0.00062999,120]
[340777779,1729798242853,-500.0,0.00062999,120]
[340777780,1729798242863,-1824.17,0.00062999,120]
[340777781,1729798242872,-1824.17,0.00062999,120]
[340777782,1729798242882,-5077.43,0.00062999,120]
[340777783,1729798242891,-5077.43,0.00062999,120]
[340777784,1729798242901,-500.0,0.00062999,120]
[340777785,1729798242910,-488.0,0.00062999,120]
[340777786,1729798242919,-500.0,0.00062999,120]
[340777787,1729798242928,-500.0,0.00062999,120]
[340777788,1729798242938,-500.0,0.00062999,120]
[340777789,1729798242947,-500.0,0.00062999,120]
[340777790,1729798242956,-500.0,0.00062999,120]
[340777791,1729798242966,-500.0,0.00062999,120]
[340777792,1729798242976,-500.0,0.00062999,120]
[340777793,1729798242986,-500.0,0.00062999,120]
[340777794,1729798242995,-728.57,0.00062999,120]
[340777795,1729798243005,-728.57,0.00062999,120]
[340777796,1729798243014,-757.63,0.00062999,120]
[340777797,1729798243023,-757.63,0.00062999,120]
[340777798,1729798243033,-1181.43,0.00062999,21]
[340777799,1729798243043,-1181.43,0.00062999,21]
[340777800,1729798243055,-500.0,0.00062999,120]
[340777801,1729798243064,-500.0,0.00062999,120]
[340777802,1729798243073,-500.0,0.00062999,120]
[340777803,1729798243083,-500.0,0.00062999,120]
[340777804,1729798243092,-500.0,0.00062999,120]
[340777805,1729798243102,-500.0,0.00062999,120]
[340777806,1729798243112,-624.65,0.00062999,120]
[340777807,1729798243122,-624.65,0.00062999,120]
[340777808,1729798243133,-516.15,0.00062999,120]
[340777809,1729798243143,-516.15,0.00062999,120]
[340777810,1729798243152,-500.0,0.00062999,120]
[340777811,1729798243161,-500.0,0.00062999,120]
[340777812,1729798243171,-500.0,0.00062999,120]
[340777813,1729798243181,-2568.135753,0.00062999,120]
[340777814,1729798243190,-500.0,0.00062999,120]
[340777815,1729798243200,-2568.135753,0.00062999,120]
[340777816,1729798243209,-151.0,0.00062999,120]
[340777817,1729798243220,-802.41,0.00062999,120]
[340777818,1729798243230,-802.41,0.00062999,120]
[340777819,1729798243240,-150.0,0.00062999,120]
[340777820,1729798243249,-1184.89,0.00062999,120]
[340777821,1729798243259,-1184.89,0.00062999,120]
[340777822,1729798243269,-2884.96,0.00062999,120]
[340777823,1729798243278,-2884.96,0.00062999,120]
[340777824,1729798243287,-151.0,0.00062999,120]
[340777825,1729798243297,-500.0,0.00062999,120]
[340777826,1729798243307,-500.0,0.00062999,120]
[340777827,1729798243317,-500000.0,0.00063,120]
[340777828,1729798243327,-151.0,0.00063,120]
[340777829,1729798243337,-335.231859,0.00063,110]
[340777830,1729798243346,-335.231859,0.00063,110]
[340777831,1729798243355,-151.0,0.00063,120]
[340777832,1729798243365,-151.0,0.00063,120]
[340777833,1729798243374,-151.0,0.00063,120]
[340777834,1729798243384,-194.634739,0.00063,120]
[340777835,1729798243394,-151.0,0.00063,120]
[340777836,1729798243403,-2568.135753,0.00063,120]
[340777837,1729798243413,-2568.135753,0.00063,120]
[340777838,1729798243423,-151.0,0.00063,120]
[340777839,1729798243432,-288.642065,0.00063,120]
[340777840,1729798243442,-500.0,0.00063012,60]
[340777841,1729798243452,-500.0,0.00063012,120]
[340777843,1729798243462,-500.0,0.00063012,120]
[340777844,1729798243471,-500.0,0.00063012,120]
[340777845,1729798243480,-500.0,0.00063012,120]
[340777846,1729798243490,-500.0,0.00063012,120]
[340777848,1729798243499,-600.44,0.00063012,120]
[340777850,1729798243509,-598.64,0.00063012,120]
[340777851,1729798243519,-1824.17,0.00063012,120]
[340777852,1729798243528,-500.0,0.00063013,120]
[340777853,1729798243537,-2614.61,0.00063013,120]
[340777854,1729798243547,-2614.61,0.00063013,120]
[340777855,1729798243557,-2614.61,0.00063013,120]
[340777856,1729798243566,-2614.61,0.00063013,120]
[340777857,1729798243576,-2614.61,0.00063013,120]
[340777858,1729798243585,-2614.61,0.00063013,120]
[340777859,1729798243595,-2614.61,0.00063013,120]
[340777860,1729798243605,-2614.61,0.00063013,120]
[340777861,1729798243614,-2614.61,0.00063013,120]
[340777862,1729798243624,-2614.61,0.00063013,120]
[340777863,1729798243634,-2614.61,0.00063013,120]
[340777864,1729798243643,-2614.61,0.00063013,120]
[340777865,1729798243652,-2614.61,0.00063013,120]
[340777866,1729798243662,-2614.61,0.00063013,120]
[340777867,1729798243671,-2614.61,0.00063013,120]
[340777868,1729798243680,-2614.61,0.00063013,120]
[340777869,1729798243690,-2614.61,0.00063013,120]
[340777870,1729798243700,-2614.61,0.00063013,120]
[340777871,1729798243709,-2614.61,0.00063013,120]
[340777872,1729798243720,-2614.61,0.00063013,120]
[340777873,1729798243730,-2614.61,0.00063013,120]
[340777874,1729798243740,-2614.61,0.00063013,120]
[340777875,1729798243749,-2614.61,0.00063013,120]
[340777876,1729798243759,-2614.75,0.00063013,120]
[340777877,1729798243769,-161.65,0.00063175,2]
[340777878,1729798243778,-1136.70209645,0.00063257,120]
[340777879,1729798243788,-150.0,0.000633,120]
[340777880,1729798243797,-168.64107482,0.00063357,120]
[340777881,1729798243808,-449.88089519,0.00063357,2]
[340777882,1729798243817,-192.61302731,0.00063357,2]
[340777883,1729798243827,-203.61945008,0.00063357,2]
[340777884,1729798243836,-2300.87902624,0.00063357,2]
[340777885,1729798243846,-500.0,0.00063398,120]
[340777886,1729798243857,-5077.43,0.00063398,120]
[340777887,1729798243866,-1181.43,0.00063398,21]
[340777888,1729798243876,-279.18002246,0.00063398,120]
[340777889,1729798243886,-624.65,0.00063398,120]
[340777890,1729798243897,-516.15,0.00063398,120]
[340777891,1729798243906,-500.0,0.00063398,120]
[340777892,1729798243916,-1184.89,0.00063398,120]
[340777893,1729798243926,-500.0,0.00063398,120]
[340777894,1729798243935,-500.0,0.00063399,120]
[340777895,1729798243945,-500.0,0.00063399,120]
[340777896,1729798243954,-723.54,0.00063399,120]
[340777897,1729798243966,-723.54,0.00063399,120]
[340777898,1729798243975,-500.0,0.00063399,120]
[340777899,1729798243984,-500.0,0.00063399,120]
[340777900,1729798243994,-314.83147172,0.00063399,120]
[340777901,1729798244003,-500.0,0.00063399,60]
[340777902,1729798244012,-500.0,0.00063399,120]
[340777903,1729798244021,-500.0,0.00063399,120]
[340777904,1729798244031,-500.0,0.00063399,120]
[340777905,1729798244041,-483.1283494,0.00063399,120]
[340777906,1729798244051,-389.18458375,0.00063399,120]
[340777907,1729798244063,-500.0,0.00063399,120]
[340777908,1729798244072,-500.0,0.00063399,120]
[340777909,1729798244082,-500.0,0.00063399,120]
[340777910,1729798244092,-500.0,0.00063399,120]
[340777911,1729798244102,-500.0,0.00063399,120]
[340777912,1729798244111,-500.0,0.00063399,120]
[340777913,1729798244121,-500.0,0.00063399,120]
[340777914,1729798244131,-600.44,0.00063399,120]
[340777915,1729798244141,-520.09,0.00063399,120]
[340777916,1729798244151,-520.09,0.00063399,120]
[340777917,1729798244161,-500.0,0.00063399,120]
[340777918,1729798244170,-500.0,0.00063399,120]
[340777919,1729798244180,-598.64,0.00063399,120]
[340777920,1729798244190,-500.0,0.00063399,120]
[340777921,1729798244199,-500.0,0.00063399,120]
[340777922,1729798244209,-1824.17,0.00063399,120]
[340777923,1729798244220,-5077.43,0.00063399,120]
[340777924,1729798244229,-500.0,0.00063399,120]
[340777925,1729798244239,-500.0,0.00063399,120]
[340777926,1729798244250,-500.0,0.00063399,120]
[340777927,1729798244259,-577.51163955,0.00063399,120]
[340777928,1729798244269,-448.90469897,0.00063399,120]
[340777929,1729798244279,-500.0,0.00063399,120]
[340777930,1729798244289,-500.0,0.00063399,120]
[340777931,1729798244299,-728.57,0.00063399,120]
[340777932,1729798244308,-728.57,0.00063399,120]
[340777933,1729798244318,-757.63,0.00063399,120]
[340777934,1729798244329,-757.63,0.00063399,120]
[340777935,1729798244338,-1181.43,0.00063399,21]
[340777936,1729798244350,-500.0,0.00063399,120]
[340777937,1729798244360,-500.0,0.00063399,120]
[340777938,1729798244369,-500.0,0.00063399,120]
[340777939,1729798244379,-500.0,0.00063399,120]
[340777940,1729798244388,-624.65,0.00063399,120]
[340777941,1729798244398,-516.15,0.00063399,120]
[340777942,1729798244408,-500.0,0.00063399,120]
[340777943,1729798244417,-500.0,0.00063399,120]
[340777944,1729798244427,-500.0,0.00063399,120]
[340777945,1729798244437,-802.41,0.00063399,120]
[340777946,1729798244447,-802.41,0.00063399,120]
[340777947,1729798244458,-1184.89,0.00063399,120]
[340777948,1729798244468,-2884.96,0.00063399,120]
[340777949,1729798244478,-2884.96,0.00063399,120]
[340777950,1729798244488,-204618.37724103,0.000634,120]
[340777951,1729798244498,-2117.88,0.000634,2]
[340777952,1729798244508,-151.0,0.000634,120]
[340777953,1729798244518,-290.721597,0.000634,120]
[340777954,1729798244528,-335.231859,0.000634,110]
[340777955,1729798244537,-335.231859,0.000634,110]
[340777956,1729798244547,-335.231859,0.000634,110]
[340777957,1729798244557,-335.231859,0.000634,110]
[340777958,1729798244567,-151.0,0.000634,120]
[340777959,1729798244576,-156.932167,0.000634,120]
[340777960,1729798244586,-151.0,0.000634,120]
[340777961,1729798244596,-151.0,0.000634,120]
[340777962,1729798244606,-151.0,0.000634,120]
[340777963,1729798244616,-478.9055,0.000634,30]
[340777964,1729798244626,-2568.135753,0.000634,120]
[340777965,1729798244636,-2568.135753,0.000634,120]
[340777966,1729798244645,-151.0,0.000634,120]
[340777967,1729798244655,-500.0,0.00063455,120]
[340777968,1729798244666,-5077.43,0.00063455,120]
[340777969,1729798244676,-1181.43,0.00063455,21]
[340777970,1729798244686,-624.65,0.00063455,120]
[340777971,1729798244696,-516.15,0.00063455,120]
[340777972,1729798244705,-500.0,0.00063455,120]
[340777973,1729798244715,-1184.89,0.00063455,120]
[340777974,1729798244725,-500.0,0.00063456,120]
[340777975,1729798244735,-500.0,0.00063456,120]
[340777976,1729798244745,-500.0,0.00063456,120]
[340777977,1729798244754,-723.54,0.00063456,120]
[340777978,1729798244764,-723.54,0.00063456,120]
[340777979,1729798244774,-723.54,0.00063456,120]
[340777980,1729798244784,-500.0,0.00063456,120]
[340777981,1729798244794,-500.0,0.00063456,120]
[340777982,1729798244805,-500.0,0.00063456,120]
[340777983,1729798244814,-500.0,0.00063456,120]
[340777984,1729798244824,-500.0,0.00063456,120]
[340777985,1729798244834,-500.0,0.00063456,60]
[340777986,1729798244844,-500.0,0.00063456,60]
[340777987,1729798244854,-500.0,0.00063456,60]
[340777988,1729798244863,-500.0,0.00063456,120]
[340777989,1729798244873,-573.23785223,0.00063456,120]
[340777990,1729798244883,-353.75830811,0.00063456,120]
[340777991,1729798244894,-500.0,0.00063456,120]
[340777992,1729798244904,-500.0,0.00063456,120]
[340777993,1729798244913,-500.0,0.00063456,120]
[340777994,1729798244922,-198.84947784,0.00063456,120]
[340777995,1729798244933,-500.0,0.00063456,120]
[340777996,1729798244942,-500.0,0.00063456,120]
[340777997,1729798244952,-500.0,0.00063456,120]
[340777998,1729798244961,-500.0,0.00063456,120]
[340777999,1729798244974,-500.0,0.00063456,120]
[340778000,1729798244993,-500.0,0.00063456,120]
[340778001,1729798245003,-500.0,0.00063456,120]
[340778002,1729798245012,-500.0,0.00063456,120]
[340778003,1729798245022,-500.0,0.00063456,120]
[340778004,1729798245032,-600.44,0.00063456,120]
[340778005,1729798245041,-600.44,0.00063456,120]
[340778006,1729798245055,-600.44,0.00063456,120]
[340778007,1729798245065,-520.09,0.00063456,120]
[340778008,1729798245075,-520.09,0.00063456,120]
[340778009,1729798245085,-520.09,0.00063456,120]
[340778010,1729798245095,-500.0,0.00063456,120]
[340778011,1729798245105,-500.0,0.00063456,120]
[340778012,1729798245115,-500.0,0.00063456,120]
[340778013,1729798245125,-598.64,0.00063456,120]
[340778014,1729798245134,-598.64,0.00063456,120]
[340778015,1729798245144,-598.64,0.00063456,120]
[340778016,1729798245154,-500.0,0.00063456,120]
[340778017,1729798245164,-500.0,0.00063456,120]
[340778018,1729798245174,-402.12829365,0.00063456,120]
[340778019,1729798245183,-1824.17,0.00063456,120]
[340778020,1729798245193,-1824.17,0.00063456,120]
[340778021,1729798245203,-1824.17,0.00063456,120]
[340778022,1729798245213,-5077.43,0.00063456,120]
[340778023,1729798245223,-5077.43,0.00063456,120]
[340778024,1729798245233,-5077.43,0.00063456,120]
[340778025,1729798245243,-500.0,0.00063456,120]
[340778026,1729798245254,-500.0,0.00063456,120]
[340778027,1729798245266,-500.0,0.00063456,120]
[340778028,1729798245276,-500.0,0.00063456,120]
[340778029,1729798245286,-500.0,0.00063456,120]
[340778030,1729798245296,-728.57,0.00063456,120]
[340778031,1729798245306,-500.0,0.00063456,120]
[340778032,1729798245316,-728.57,0.00063456,120]
[340778033,1729798245326,-728.57,0.00063456,120]
[340778034,1729798245336,-757.63,0.00063456,120]
[340778035,1729798245346,-757.63,0.00063456,120]
[340778036,1729798245356,-757.63,0.00063456,120]
[340778037,1729798245366,-1181.43,0.00063456,21]
[340778038,1729798245377,-1181.43,0.00063456,21]
[340778039,1729798245386,-1181.43,0.00063456,21]
[340778040,1729798245397,-500.0,0.00063456,120]
[340778041,1729798245407,-500.0,0.00063456,120]
[340778042,1729798245417,-500.0,0.00063456,120]
[340778043,1729798245427,-500.0,0.00063456,120]
[340778044,1729798245437,-168.89914517,0.00063456,120]
[340778045,1729798245447,-624.65,0.00063456,120]
[340778046,1729798245457,-624.65,0.00063456,120]
[340778047,1729798245468,-624.65,0.00063456,120]
[340778048,1729798245477,-516.15,0.00063456,120]
[340778049,1729798245487,-516.15,0.00063456,120]
[340778050,1729798245497,-516.15,0.00063456,120]
[340778051,1729798245507,-500.0,0.00063456,120]
[340778052,1729798245516,-500.0,0.00063456,120]
[340778053,1729798245525,-500.0,0.00063456,120]
[340778054,1729798245535,-153.5,0.00063456,120]
[340778055,1729798245545,-802.41,0.00063456,120]
[340778056,1729798245555,-802.41,0.00063456,120]
[340778057,1729798245565,-802.41,0.00063456,120]
[340778058,1729798245576,-254.62474857,0.00063456,120]
[340778059,1729798245586,-1184.89,0.00063456,120]
[340778060,1729798245596,-1184.89,0.00063456,120]
[340778064,1729798245723,-1184.89,0.00063456,120]
[340778065,1729798245733,-2884.96,0.00063456,120]
[340778066,1729798245743,-2884.96,0.00063456,120]
[340778067,1729798245752,-2884.96,0.00063456,120]
[340778069,1729798245761,-588652.14000208,0.00063457,120]
[340778070,1729798245771,-335.231859,0.00063457,110]
[340778072,1729798245781,-335.231859,0.00063457,110]
[340778074,1729798245791,-169.7183692,0.00063457,3]
[340778075,1729798245800,-151.0,0.00063457,120]
[340778077,1729798245810,-151.0,0.00063457,120]